bitfinex-derivatives/quotes_SOLF0:USTF0_20241025
["timestamp","ask_amount","ask_price","bid_price","bid_amount"]
[1729849421056,2.9118,171.84,171.82,5.51673385]
[1729849421243,2.9118,171.84,171.83,5.51673385]
[1729849421650,2.9118,171.84,171.81,7.3923]
[1729849421853,2.9118,171.84,171.83,5.51672752]
[1729849423350,4.48,171.91,171.83,5.51672752]
[1729849423650,2.9117,171.85,171.81,7.3923]
[1729849423857,2.9117,171.85,171.82,20.01222446]
[1729849424155,2.9117,171.85,171.83,5.51660095]
[1729849424354,2.9117,171.85,171.84,5.51660095]
[1729849424551,2.9117,171.85,171.81,7.3923]
[1729849424854,2.9117,171.85,171.82,15.79989388]
[1729849425054,2.9117,171.85,171.83,5.5166415]
[1729849425254,2.9117,171.85,171.84,5.5166415]
[1729849425455,2.9117,171.85,171.81,7.3923]
[1729849425655,2.9117,171.85,171.84,5.51658448]
[1729849425858,2.9117,171.85,171.81,7.3923]
[1729849426056,2.9117,171.85,171.82,18.55567059]
[1729849426256,2.9117,171.85,171.83,5.51662891]
[1729849426456,2.9117,171.85,171.81,7.3923]
[1729849426658,2.9117,171.85,171.82,14.34336047]
[1729849426849,2.9117,171.85,171.83,5.5166771]
[1729849427047,2.9117,171.85,171.82,4.48]
[1729849427357,2.9117,171.85,171.83,5.51667812]
[1729849427547,2.9117,171.85,171.82,4.48]
[1729849427749,2.9117,171.85,171.83,5.51666032]
[1729849427961,2.9117,171.85,171.84,5.51666032]
[1729849429155,2.9117,171.85,171.82,4.48]
[1729849429357,2.9117,171.85,171.84,5.5165885]
[1729849436163,2.9117,171.85,171.82,4.48]
[1729849436763,2.9117,171.85,171.83,5.51670675]
[1729849436966,2.9117,171.85,171.84,5.51670675]
[1729849439957,2.9117,171.85,171.82,4.48]
[1729849440267,2.9117,171.85,171.83,5.51689848]
[1729849440453,2.9117,171.85,171.84,5.51689848]
[1729849443975,2.9115,171.86,171.84,5.51689848]
[1729849444172,2.9115,171.86,171.82,7.392]
[1729849444374,2.9115,171.86,171.83,5.51698159]
[1729849444574,2.9115,171.86,171.84,5.51698159]
[1729849444773,2.4436,171.89,171.82,4.48]
[1729849444976,2.4436,171.89,171.83,5.51699223]
[1729849445171,2.4436,171.89,171.82,4.48]
[1729849445374,2.9118,171.85,171.83,5.51718929]
[1729849445576,2.9118,171.85,171.82,4.48]
[1729849445768,2.9118,171.85,171.83,5.51713411]
[1729849445969,2.9118,171.85,171.82,4.48]
[1729849446175,2.9118,171.85,171.83,5.51713056]
[1729849446376,2.9118,171.85,171.84,5.51713056]
[1729849446579,2.9118,171.85,171.82,4.48]
[1729849446779,2.9118,171.85,171.83,5.5173172]
[1729849447074,2.9118,171.85,171.82,4.48]
[1729849447274,2.9118,171.85,171.83,5.51732388]
[1729849447576,2.9118,171.85,171.82,4.48]
[1729849447773,2.9118,171.85,171.83,5.51748632]
[1729849447974,2.4436,171.89,171.82,4.48]
[1729849448176,2.9113,171.87,171.83,5.51747968]
[1729849448377,2.4436,171.89,171.82,7.3921]
[1729849448577,2.4436,171.89,171.83,5.51755523]
[1729849448780,2.9115,171.87,171.84,5.51755523]
[1729849448983,2.4436,171.89,171.82,7.3921]
[1729849449175,2.4436,171.89,171.83,5.51751379]
[1729849449373,2.9115,171.87,171.84,5.51751379]
[1729849449585,2.9115,171.87,171.82,7.3921]
[1729849449780,2.9115,171.87,171.83,5.51764088]
[1729849449982,2.9115,171.87,171.82,7.3921]
[1729849450182,2.9115,171.87,171.83,5.51764291]
[1729849450379,2.9115,171.87,171.84,5.51764291]
[1729849450575,2.9115,171.87,171.83,2.9119]
[1729849450780,2.9112,171.88,171.84,5.51783728]
[1729849450983,2.9112,171.88,171.83,2.9119]
[1729849451178,2.9112,171.88,171.84,5.51781532]
[1729849451374,2.9112,171.88,171.83,2.9119]
[1729849451578,2.9112,171.88,171.84,5.51803342]
[1729849451878,2.9112,171.88,171.83,2.9119]
[1729849452082,2.9112,171.88,171.84,5.51802936]
[1729849452282,2.9112,171.88,171.83,2.9119]
[1729849452483,2.9112,171.88,171.84,5.51809798]
[1729849452685,2.9112,171.88,171.83,2.9119]
[1729849452995,2.9112,171.88,171.84,5.51831121]
[1729849453180,2.9112,171.88,171.83,2.9119]
[1729849453496,2.85885158,171.92,171.84,5.51859278]
[1729849453782,2.85885158,171.92,171.83,2.9119]
[1729849453783,2.9113,171.87,171.83,2.9119]
[1729849453986,2.9113,171.87,171.84,5.51857489]
[1729849454286,2.9113,171.87,171.83,2.9119]
[1729849454486,2.9113,171.87,171.84,14.34841752]
[1729849454685,2.9113,171.87,171.85,5.51862212]
[1729849454888,2.9112,171.88,171.83,2.9119]
[1729849455087,2.9112,171.88,171.84,14.34825156]
[1729849455282,2.9112,171.88,171.85,5.51855829]
[1729849455488,2.9112,171.88,171.82,4.48]
[1729849455782,2.9109,171.9,171.83,20.01929209]
[1729849455982,2.9109,171.9,171.84,21.30259209]
[1729849456182,2.9109,171.9,171.85,17.26024275]
[1729849456383,2.9109,171.9,171.86,5.51874721]
[1729849456577,2.9109,171.9,171.85,2.9115]
[1729849456787,7.0106,171.94,171.86,2.9114]
[1729849456990,0.99061566,171.93,171.84,1.2833]
[1729849457189,0.99062064,171.92,171.85,15.80390608]
[1729849457385,2.5306,171.94,171.86,9.99827048]
[1729849457695,2.9108,171.91,171.87,8.42957048]
[1729849457993,2.9108,171.91,171.87,2.9113]
[1729849462191,2.9108,171.91,171.86,7.3913]
[1729849462392,2.9108,171.91,171.87,5.51557728]
[1729849462593,2.9108,171.91,171.86,7.3913]
[1729849462794,2.9108,171.91,171.87,5.51550954]
[1729849463095,2.9108,171.91,171.86,7.3913]
[1729849463398,2.9108,171.91,171.87,5.51553047]
[1729849463599,2.9108,171.91,171.86,7.3913]
[1729849463792,2.9108,171.91,171.87,5.51497218]
[1729849464088,1.2739,171.94,171.86,7.3913]
[1729849464295,2.9108,171.9,171.87,5.51451497]
[1729849464498,1.2739,171.94,171.86,4.48]
[1729849464795,1.2739,171.94,171.85,4.48]
[1729849464796,2.9113,171.88,171.85,4.48]
[1729849465185,2.9113,171.88,171.86,5.51449692]
[1729849465382,1.2327,171.92,171.84,1.2833]
[1729849465383,2.9113,171.87,171.84,1.2833]
[1729849465592,1.2327,171.92,171.85,5.51458213]
[1729849465787,0.99093919,171.91,171.84,1.2833]
[1729849465983,2.9115,171.87,171.85,5.51458947]
[1729849466186,2.9115,171.87,171.84,1.2833]
[1729849466385,2.9115,171.87,171.85,5.51463387]
[1729849466592,2.9115,171.87,171.84,1.2833]
[1729849466895,5.7127,171.92,171.83,4.48]
[1729849466896,2.9115,171.86,171.85,5.51452384]
[1729849467495,2.9115,171.86,171.81,7.3923]
[1729849467701,5.7127,171.92,171.82,20.00592965]
[1729849467889,5.7127,171.92,171.83,5.51474926]
[1729849468097,2.9118,171.85,171.81,4.48]
[1729849468397,2.9118,171.85,171.82,15.79513016]
[1729849468697,2.9118,171.85,171.83,5.51483383]
[1729849468885,2.9118,171.85,171.81,4.48]
[1729849469084,2.9118,171.85,171.82,14.33857467]
[1729849469295,2.9118,171.85,171.83,5.51483641]
[1729849469495,2.9118,171.85,171.81,4.48]
[1729849469698,2.9118,171.85,171.82,14.33880628]
[1729849469896,2.9118,171.85,171.83,5.51492549]
[1729849470093,2.9118,171.85,171.81,7.3923]
[1729849470298,2.9118,171.85,171.82,5.51500906]
[1729849470494,2.9118,171.85,171.83,5.51500906]
[1729849470691,2.9118,171.85,171.81,7.3923]
[1729849471000,2.9118,171.85,171.82,5.51489859]
[1729849471192,2.9118,171.85,171.81,7.3923]
[1729849471501,2.9118,171.85,171.83,5.51490193]
[1729849471694,2.9118,171.85,171.82,5.51490193]
[1729849472200,2.9118,171.85,171.81,7.3923]
[1729849472400,2.9118,171.85,171.82,5.51505424]
[1729849472604,2.9118,171.85,171.83,5.51505424]
[1729849472804,2.9118,171.85,171.81,7.3923]
[1729849472994,2.9118,171.85,171.82,5.5155675]
[1729849473194,2.9118,171.85,171.81,7.3923]
[1729849473195,2.9118,171.85,171.83,5.5155675]
[1729849473495,2.9118,171.85,171.81,7.3923]
[1729849473689,2.9118,171.85,171.82,5.51575519]
[1729849473889,2.9118,171.85,171.83,5.51575519]
[1729849474102,2.9118,171.85,171.81,7.3923]
[1729849474298,2.9118,171.85,171.82,5.51577734]
[1729849474502,2.9118,171.85,171.83,5.51577734]
[1729849474693,5.7127,171.92,171.81,7.3923]
[1729849474897,2.9116,171.86,171.82,5.51614643]
[1729849475095,2.9116,171.86,171.83,5.51614643]
[1729849475303,2.9116,171.86,171.81,7.3923]
[1729849475500,2.9116,171.86,171.82,5.51633341]
[1729849475698,2.9116,171.86,171.83,5.51633341]
[1729849475896,2.9116,171.86,171.81,7.3923]
[1729849476100,2.9116,171.86,171.82,14.34224918]
[1729849476301,2.9116,171.86,171.83,5.51624968]
[1729849476510,2.9116,171.86,171.81,7.3923]
[1729849476804,2.9116,171.86,171.82,15.79880392]
[1729849477003,2.9116,171.86,171.83,5.51623949]
[1729849477198,2.9116,171.86,171.84,5.51632623]
[1729849477396,2.9116,171.86,171.81,7.3923]
[1729849477600,2.9116,171.86,171.82,5.51649368]
[1729849477899,2.9116,171.86,171.83,5.51649368]
[1729849478106,2.9116,171.86,171.81,7.3923]
[1729849478304,2.9116,171.86,171.82,14.34301373]
[1729849478604,2.9116,171.86,171.83,5.51654374]
[1729849478805,2.9116,171.86,171.81,7.3923]
[1729849479112,2.9116,171.86,171.82,14.34300712]
[1729849479404,2.9116,171.86,171.81,7.3923]
[1729849479405,2.9116,171.86,171.83,5.5165412]
[1729849479604,2.9116,171.86,171.84,5.51644961]
[1729849479806,2.9116,171.86,171.81,7.3923]
[1729849480002,2.9116,171.86,171.82,20.01196343]
[1729849480207,2.9116,171.86,171.81,7.3923]
[1729849480399,2.9116,171.86,171.82,20.01196552]
[1729849480600,2.9116,171.86,171.83,5.5165282]
[1729849480909,2.9116,171.86,171.84,5.5165282]
[1729849481094,2.9116,171.86,171.81,7.3923]
[1729849481296,2.9113,171.88,171.84,2.9118]
[1729849481699,2.9113,171.88,171.85,5.51646829]
[1729849481896,2.9113,171.88,171.84,2.9118]
[1729849482099,2.9113,171.88,171.85,5.51639666]
[1729849482300,2.9113,171.88,171.84,2.9118]
[1729849482500,2.9109,171.9,171.85,5.51635324]
[1729849482714,2.9109,171.9,171.86,5.51635324]
[1729849482904,2.9109,171.9,171.85,4.48]
[1729849483103,2.9109,171.9,171.86,5.51622875]
[1729849483310,1.2327,171.92,171.85,7.3915]
[1729849483508,2.911,171.89,171.86,5.51614985]
[1729849483709,2.911,171.89,171.85,7.3915]
[1729849483913,2.911,171.89,171.86,5.51615906]
[1729849484122,2.911,171.89,171.85,7.3915]
[1729849484315,2.911,171.89,171.86,5.51609456]
[1729849484614,2.911,171.89,171.85,7.3915]
[1729849484805,2.911,171.89,171.86,5.51608268]
[1729849485111,2.911,171.89,171.85,7.3915]
[1729849485307,2.911,171.89,171.86,5.51601611]
[1729849485509,2.911,171.89,171.85,7.3915]
[1729849485810,2.911,171.89,171.86,5.51601799]
[1729849486007,2.911,171.89,171.85,7.3915]
[1729849486206,2.911,171.89,171.86,5.51585035]
[1729849486505,2.911,171.89,171.85,7.3915]
[1729849486710,2.911,171.89,171.86,5.51570156]
[1729849486909,2.9108,171.9,171.85,7.3915]
[1729849487104,2.9108,171.9,171.86,5.51570411]
[1729849487306,2.9108,171.9,171.85,7.3915]
[1729849487609,2.9108,171.9,171.86,14.33974889]
[1729849487814,2.9108,171.9,171.87,5.51547423]
[1729849488018,2.9108,171.9,171.85,7.3915]
[1729849488315,2.9108,171.9,171.86,14.3394317]
[1729849488508,2.9108,171.9,171.87,5.51516604]
[1729849488708,2.9108,171.9,171.85,7.3915]
[1729849489010,2.9108,171.9,171.86,14.33817357]
[1729849489208,2.9108,171.9,171.87,5.51468214]
[1729849489403,2.9108,171.9,171.85,7.3915]
[1729849489609,2.9108,171.9,171.86,14.33687986]
[1729849489813,2.9108,171.9,171.87,5.51418456]
[1729849490009,2.9108,171.9,171.85,7.3915]
[1729849490215,2.9108,171.9,171.86,14.33688821]
[1729849490411,2.9108,171.9,171.87,5.51418777]
[1729849490714,2.9108,171.9,171.85,7.3915]
[1729849490917,2.9108,171.9,171.86,14.33584048]
[1729849491114,2.9108,171.9,171.87,5.5137848]
[1729849491414,1.2327,171.92,171.85,4.48]
[1729849491620,1.2739,171.94,171.86,14.33487432]
[1729849491910,1.2739,171.94,171.87,14.33487594]
[1729849492116,4.1842,171.94,171.88,5.5134132]
[1729849492320,4.1842,171.94,171.86,1.2396]
[1729849492518,1.2739,171.94,171.89,2.911]
[1729849493306,2.9103,171.93,171.89,2.911]
[1729849494318,2.9105,171.92,171.88,2.9111]
[1729849498124,1.2238,171.98,171.86,1.2396]
[1729849498310,2.9102,171.94,171.9,2.9106]
[1729849498713,2.9102,171.94,171.86,1.2396]
[1729849498714,2.9104,171.93,171.89,2.9109]
[1729849500321,4.46,171.97,171.86,1.2396]
[1729849500514,0.99104068,171.96,171.87,14.31867727]
[1729849500709,0.99104068,171.96,171.86,1.2396]
[1729849500710,0.99104068,171.96,171.88,5.50718356]
[1729849500916,2.9106,171.92,171.87,2.9112]
[1729849501628,2.9106,171.92,171.88,5.50727125]
[1729849501925,2.9106,171.92,171.87,2.9112]
[1729849502120,2.9106,171.92,171.88,5.50682441]
[1729849502421,2.9106,171.92,171.87,2.9112]
[1729849502622,2.9106,171.92,171.88,5.50639057]
[1729849502818,2.9106,171.92,171.87,2.9112]
[1729849503122,2.9106,171.92,171.88,5.50639057]
[1729849503324,2.9106,171.92,171.87,2.9112]
[1729849503517,2.9106,171.92,171.88,5.50579318]
[1729849503712,2.9106,171.92,171.87,2.9112]
[1729849503918,2.9106,171.92,171.88,5.50581036]
[1729849504113,2.9106,171.92,171.89,2.9109]
[1729849504428,2.9103,171.93,171.89,2.9109]
[1729849504727,4.46,171.97,171.9,2.9108]
[1729849504917,2.9103,171.94,171.9,2.9108]
[1729849505118,4.46,171.97,171.9,2.9108]
[1729849505312,0.99095966,171.96,171.89,4.46]
[1729849505512,2.9101,171.94,171.89,7.3709]
[1729849508021,4.46,171.97,171.89,4.46]
[1729849508226,0.99047277,171.96,171.89,4.46]
[1729849509227,2.9106,171.92,171.89,4.46]
[1729849509428,4.46,171.97,171.86,5.6996]
[1729849509633,0.99044822,171.96,171.86,5.6996]
[1729849510225,2.9108,171.91,171.86,8.611]
[1729849510424,4.46,171.97,171.86,4.151]
[1729849510728,0.99043355,171.96,171.86,4.151]
[1729849511627,4.46,171.97,171.87,5.50330633]
[1729849511934,0.99077909,171.96,171.84,4.46]
[1729849512319,2.9111,171.89,171.84,7.3717]
[1729849512525,4.46,171.92,171.84,7.3717]
[1729849512733,3.50644758,171.91,171.84,7.3717]
[1729849512931,2.5158,171.91,171.84,7.3717]
[1729849513123,2.9112,171.88,171.84,4.46]
[1729849513318,2.5158,171.91,171.82,4.46]
[1729849513520,0.99058585,171.9,171.82,4.46]
[1729849513722,2.92970199,171.89,171.82,4.46]
[1729849514030,2.5158,171.91,171.82,4.46]
[1729849514227,0.99070081,171.9,171.81,2.9122]
[1729849514428,2.9285371,171.89,171.82,5.50487488]
[1729849514627,2.9285371,171.89,171.81,2.9122]
[1729849514827,2.5158,171.91,171.82,5.50501213]
[1729849515029,2.9115,171.87,171.81,2.9122]
[1729849515228,2.9115,171.87,171.82,5.50500568]
[1729849515433,4.46,171.88,171.8,1.2765]
[1729849515638,4.46,171.88,171.81,5.50523975]
[1729849515825,7.39329714,171.88,171.77,4.46]
[1729849516131,7.39329714,171.88,171.78,6.96243612]
[1729849516132,2.9116,171.85,171.78,6.96243612]
[1729849516323,7.39329714,171.88,171.79,5.50571338]
[1729849516526,0.99054801,171.87,171.77,7.373]
[1729849516728,0.99054801,171.87,171.78,5.50539836]
[1729849516930,2.9121,171.83,171.79,5.50539836]
[1729849517236,2.9121,171.83,171.77,7.373]
[1729849517429,2.9121,171.83,171.78,5.50488716]
[1729849517733,2.9121,171.83,171.79,5.50488716]
[1729849517934,2.9121,171.83,171.77,7.373]
[1729849518134,2.9121,171.83,171.78,5.50488918]
[1729849518434,2.9121,171.83,171.79,5.50488918]
[1729849518640,2.9121,171.83,171.78,2.9128]
[1729849518836,2.9121,171.83,171.79,5.50432455]
[1729849519037,7.39329714,171.88,171.78,2.9128]
[1729849519335,7.39329714,171.88,171.79,5.50432455]
[1729849519336,2.9122,171.82,171.79,5.50432455]
[1729849519543,2.9122,171.82,171.77,4.46]
[1729849519735,2.9122,171.82,171.78,5.50379297]
[1729849520031,2.9122,171.82,171.79,5.50379297]
[1729849520240,2.9122,171.82,171.77,7.373]
[1729849520430,2.93329714,171.88,171.78,5.50319961]
[1729849520632,2.9126,171.8,171.75,2.9133]
[1729849520935,2.9126,171.8,171.76,5.50339704]
[1729849521235,2.9126,171.8,171.73,4.46]
[1729849521236,4.46,171.82,171.77,5.50339704]
[1729849521429,4.46,171.82,171.73,4.46]
[1729849521636,4.46,171.82,171.74,19.96557856]
[1729849521830,4.46,171.82,171.75,5.50262219]
[1729849522030,4.46,171.82,171.76,5.50262219]
[1729849522338,4.46,171.82,171.75,2.9133]
[1729849522928,2.9129,171.78,171.73,7.3735]
[1729849523133,2.9129,171.78,171.74,5.50168715]
[1729849523334,2.4086,171.81,171.73,4.46]
[1729849523531,2.913,171.77,171.72,2.9137]
[1729849523737,2.913,171.77,171.74,5.49983905]
[1729849524034,4.46,171.78,171.72,2.9137]
[1729849524435,2.9132,171.76,171.72,2.9137]
[1729849525233,2.9132,171.76,171.69,5.6802]
[1729849525537,2.9134,171.75,171.7,5.49548882]
[1729849525735,2.9134,171.75,171.71,5.49548882]
[1729849525936,4.46,171.78,171.69,5.6802]
[1729849526138,4.46,171.78,171.7,5.49568659]
[1729849526340,4.46,171.78,171.69,5.6802]
[1729849526539,4.46,171.78,171.7,5.4935208]
[1729849526838,4.46,171.78,171.69,5.6802]
[1729849527137,4.46,171.78,171.7,5.49350322]
[1729849527330,4.46,171.78,171.71,2.914]
[1729849527331,2.9132,171.76,171.71,2.914]
[1729849533043,4.46,171.78,171.69,5.6802]
[1729849533240,2.9136,171.74,171.69,5.6802]
[1729849533437,4.46,171.78,171.69,5.6802]
[1729849535347,8.06603374,171.73,171.69,8.5945]
[1729849537644,8.06603374,171.73,171.69,5.6802]
[1729849537844,4.46,171.78,171.69,5.6802]
[1729849538045,8.06603374,171.73,171.69,5.6802]
[1729849538249,8.06603374,171.73,171.7,2.9141]
[1729849538748,4.46,171.78,171.69,5.6802]
[1729849538951,8.06603374,171.73,171.69,5.6802]
[1729849539850,8.06603374,171.73,171.7,2.9142]
[1729849540248,10.97973374,171.73,171.7,2.9142]
[1729849542057,8.06603374,171.74,171.69,5.6802]
[1729849543260,2.9137,171.73,171.7,2.9142]
[1729849545350,2.9137,171.73,171.69,5.6802]
[1729849545351,8.06603374,171.72,171.69,1.2202]
[1729849545557,10.98003374,171.72,171.69,1.2202]
[1729849550160,2.9143,171.7,171.66,2.9147]
[1729849551059,10.98063374,171.68,171.64,2.9152]
[1729849551850,8.06603374,171.68,171.63,1.2116]
[1729849552055,2.9147,171.67,171.63,4.1268]
[1729849552465,2.9152,171.65,171.63,1.2116]
[1729849552654,8.06603374,171.68,171.63,1.2116]
[1729849553162,10.98073374,171.68,171.64,2.9151]
[1729849553465,4.46,171.7,171.63,9.27763374]
[1729849553765,10.98073374,171.68,171.64,2.9152]
[1729849554660,2.9147,171.68,171.64,2.9152]
[1729849555259,2.9142,171.7,171.64,8.06603374]
[1729849555454,10.98023374,171.7,171.64,8.06603374]
[1729849555869,10.98023374,171.7,171.67,2.9147]
[1729849556568,10.98023374,171.7,171.66,2.9148]
[1729849560469,2.9142,171.7,171.66,2.9148]
[1729849560766,10.98023374,171.7,171.66,2.9148]
[1729849562466,10.97993374,171.72,171.67,8.06603374]
[1729849563072,8.06603374,171.72,171.67,8.06603374]
[1729849563266,8.06603374,171.72,171.69,2.9143]
[1729849563764,8.06603374,171.72,171.67,8.06603374]
[1729849563964,8.06603374,171.72,171.68,2.9145]
[1729849564173,2.4742,171.78,171.67,8.06603374]
[1729849564467,2.4742,171.78,171.72,2.9137]
[1729849564468,8.06603374,171.76,171.72,2.9137]
[1729849564669,8.06603374,171.76,171.71,8.06603374]
[1729849564968,8.06603374,171.76,171.71,10.97993374]
[1729849564969,10.97923374,171.76,171.71,10.97993374]
[1729849565367,10.97923374,171.76,171.71,8.06603374]
[1729849565968,10.97923374,171.76,171.71,10.98003374]
[1729849566765,5.3871,171.78,171.74,2.9135]
[1729849566967,8.06603374,171.77,171.71,8.06603374]
[1729849567366,2.4742,171.78,171.73,8.06603374]
[1729849567662,399.94,171.9,171.75,8.06603374]
[1729849567972,10.97823374,171.82,171.77,2.9129]
[1729849568275,7.85702004,171.87,171.76,8.06603374]
[1729849568276,6.8645,171.87,171.76,8.06603374]
[1729849568464,10.97833374,171.82,171.77,2.913]
[1729849568773,8.06603374,171.8,171.75,8.06603374]
[1729849569279,8.06603374,171.8,171.76,2.9131]
[1729849570074,6.8645,171.87,171.78,2.9127]
[1729849570276,8.06603374,171.83,171.78,2.9127]
[1729849571367,10.97813374,171.83,171.78,2.9127]
[1729849572172,2.9122,171.82,171.78,2.9127]
[1729849574680,6.8645,171.87,171.79,8.06603374]
[1729849574879,8.06603374,171.84,171.79,8.06603374]
[1729849575477,8.06603374,171.84,171.79,10.97863374]
[1729849577375,10.97783374,171.84,171.79,10.97863374]
[1729849580277,2.912,171.83,171.79,10.97863374]
[1729849581086,2.9116,171.86,171.81,8.06603374]
[1729849581381,8.06603374,171.9,171.84,8.06603374]
[1729849581585,4.46,171.93,171.84,10.97783374]
[1729849581586,11.9692857,171.89,171.84,10.97783374]
[1729849581775,10.97703374,171.89,171.84,10.97783374]
[1729849582478,10.97733374,171.87,171.83,7.372]
[1729849582677,8.06603374,171.85,171.83,4.46]
[1729849584782,8.06603374,171.84,171.8,4.46]
[1729849585473,10.97803374,171.84,171.8,4.46]
[1729849585679,8.06603374,171.82,171.78,5.6772]
[1729849585874,2.9124,171.81,171.78,5.6772]
[1729849586083,8.06603374,171.82,171.78,5.6772]
[1729849586284,4.46,171.89,171.78,13.74323374]
[1729849586470,2.9115,171.86,171.82,2.912]
[1729849586675,8.06603374,171.87,171.82,8.06603374]
[1729849587382,10.97753374,171.87,171.83,2.9119]
[1729849589481,2.9117,171.85,171.82,4.44]
[1729849590987,10.97753374,171.86,171.82,4.44]
[1729849591492,10.97753374,171.86,171.82,7.3521]
[1729849592493,8.06603374,171.86,171.82,4.44]
[1729849592785,8.06603374,171.88,171.82,12.50603374]
[1729849593585,2.9115,171.87,171.83,2.912]
[1729849593784,8.06603374,171.9,171.84,8.06603374]
[1729849593985,0.99332552,171.89,171.84,8.06603374]
[1729849594187,3.90432552,171.89,171.85,2.9116]
[1729849594385,10.61043374,171.91,171.85,10.97763374]
[1729849594588,2.5444,171.91,171.88,8.06603374]
[1729849594792,2.9109,171.9,171.88,8.06603374]
[1729849595085,2.9109,171.9,171.79,5.36882389]
[1729849595086,8.06603374,171.9,171.86,4.44]
[1729849595284,10.97733374,171.88,171.84,4.44]
[1729849596091,2.9114,171.87,171.84,4.44]
[1729849596389,8.06603374,171.87,171.83,4.44]
[1729849596578,2.9116,171.86,171.83,4.44]
[1729849596783,8.06603374,171.87,171.83,4.44]
[1729849597095,8.06603374,171.85,171.83,4.44]
[1729849597496,2.9118,171.84,171.83,4.44]
[1729849597792,8.06603374,171.85,171.83,4.44]
[1729849597987,10.97773374,171.85,171.83,4.44]
[1729849598894,10.97773374,171.85,171.8,15.41843374]
[1729849602087,8.06603374,171.85,171.8,4.44]
[1729849602287,2.912,171.83,171.8,4.44]
[1729849603290,2.912,171.83,171.8,7.3525]
[1729849603484,8.06603374,171.85,171.8,7.3525]
[1729849603685,2.9118,171.84,171.8,7.3525]
[1729849603892,8.06603374,171.86,171.81,10.97833374]
[1729849604390,8.06603374,171.86,171.81,8.06603374]
[1729849604694,2.9117,171.85,171.82,2.9121]
[1729849605096,8.06603374,171.88,171.81,8.06603374]
[1729849605295,2.9115,171.86,171.81,8.06603374]
[1729849605497,10.97753374,171.86,171.81,8.06603374]
[1729849605888,2.9117,171.85,171.81,8.06603374]
[1729849606495,10.97753374,171.86,171.81,10.97823374]
[1729849607684,10.97753374,171.86,171.82,2.9121]
[1729849610601,2.9115,171.86,171.82,2.9121]
[1729849611602,2.9115,171.86,171.81,8.06603374]
[1729849611900,2.9115,171.86,171.81,10.97833374]
[1729849612399,2.9115,171.86,171.82,2.9121]
[1729849615198,2.9115,171.86,171.81,10.97833374]
[1729849617106,8.06603374,171.87,171.81,10.97833374]
[1729849617107,2.9117,171.85,171.81,10.97833374]
[1729849618400,2.9118,171.84,171.81,10.97833374]
[1729849618600,8.06603374,171.87,171.81,10.97833374]
[1729849619400,8.06603374,171.84,171.79,4.44]
[1729849620093,2.9125,171.81,171.79,4.44]
[1729849620296,8.06603374,171.83,171.79,4.44]
[1729849620494,2.9125,171.8,171.79,4.44]
[1729849621197,2.9124,171.81,171.79,4.44]
[1729849623403,2.9124,171.81,171.77,10.97903374]
[1729849623596,2.9124,171.81,171.77,15.41903374]
[1729849627803,8.06603374,171.83,171.77,15.41903374]
[1729849628009,2.9129,171.78,171.75,4.44]
[1729849628203,8.06603374,171.79,171.75,4.44]
[1729849628613,2.913,171.78,171.75,4.44]
[1729849628809,8.06603374,171.79,171.74,1.268]
[1729849629005,2.86713487,171.83,171.72,4.44]
[1729849629006,8.06603374,171.76,171.72,4.44]
[1729849629213,2.9136,171.74,171.72,4.44]
[1729849629410,8.06603374,171.74,171.69,1.2574]
[1729849629912,8.06603374,171.72,171.67,10.98063374]
[1729849630119,8.06603374,171.72,171.67,15.42063374]
[1729849631314,2.9142,171.71,171.67,15.42063374]
[1729849633213,2.9142,171.71,171.67,10.98063374]
[1729849636915,2.9142,171.7,171.66,15.42083374]
[1729849637223,9.80340408,171.78,171.66,15.42083374]
[1729849637224,4.44,171.74,171.66,12.50603374]
[1729849637431,8.06603374,171.71,171.66,12.50603374]
[1729849637816,10.98023374,171.71,171.67,2.9146]
[1729849638321,8.06603374,171.71,171.67,2.9146]